Cogmind - Beta 13 @@@ ROGUE MODE // 2024.04.24 @ 19:23:22 Player: AntinDisguise Result: Destroyed by Y-45 Defender with Heavy Assault Rifle Performance ------------- Evolutions (1) 500 Regions Visited (3) 600 Robots Destroyed (25) 125 Value Destroyed (703) 703 Prototype IDs (4) 80 Alien Tech Used (0) 0 Bonus (0) 0 TOTAL SCORE: 2008 Bonus ------- None Cogmind --------- Core Integrity 0/400 Matter 222/300 Energy 460/460 System Corruption 7% Temperature Danger (410) Movement Treading (240) Ox1 Location -9/Storage Parts ------- > --- POWER (2) -------- Heavy Ion Engine Heavy Ion Engine > --- PROPULSION (2) --- Light Treads Light Treads > --- UTILITY (3) ------ Improved Heat Sink Large Storage Unit Hardened Light Armor Plating > --- WEAPON (2) ------- Advanced Beam Cannon Improved Light Cannon > --- INVENTORY (15) --- Light Treads Light Treads Light Treads Light Treads Improved EM Shotgun Grenade Launcher Grenade Launcher Grenade Launcher Grenade Launcher Katana Peak State ------------ > --- POWER ------------ Heavy Ion Engine Heavy Ion Engine > --- PROPULSION ------- Light Treads Light Treads > --- UTILITY ---------- Improved Heat Sink Large Storage Unit Hardened Light Armor Plating > --- WEAPON ----------- Improved EM Shotgun Improved Light Cannon > --- INVENTORY -------- Reinforced Ion Engine Light Treads Light Treads Improved EM Shotgun Advanced Beam Cannon Grenade Launcher Grenade Launcher Grenade Launcher Grenade Launcher Katana [Rating: 20] Favorites ----------- Power Ion Engine Engine Ion Engine Propulsion Light Treads Treads Light Treads Wheel Compact Wheel Flight Unit Improved Flight Unit Utility Large Storage Unit Device Improved Heat Sink Storage Large Storage Unit Protection Hardened Light Armor Plating Weapon Improved Light Cannon Energy Gun EM Pulse Gun Energy Cannon Advanced Beam Cannon Ballistic Gun Assault Rifle Ballistic Cannon Improved Light Cannon Launcher Grenade Launcher Slashing Weapon Katana Build | -11 -10 -9 -9 ------- Run | Yrd Mat Mat Sto Slots Evolved 2 | . . 2 . Power 1 | . . 1 . Propulsion . | . . . . Utility 1 | . . 1 . Weapon . | . . . . Parts Attached 35 | 6 1 2 26 Power 6 | 1 . 1 4 Engine 6 | 1 . 1 4 Core . | . . . . Reactor . | . . . . Propulsion 10 | 2 . . 8 Treads 7 | . . . 7 Leg . | . . . . Wheel 2 | 2 . . . Hover . | . . . . Flight 1 | . . . 1 Utility 6 | 1 1 1 3 Device 3 | . . 1 2 Storage 2 | 1 1 . . Processor . | . . . . Hackware . | . . . . Protection 1 | . . . 1 Artifact . | . . . . Weapon 13 | 2 . . 11 Energy Gun 4 | 1 . . 3 Energy Cannon 2 | . . . 2 Ballistic Gun 2 | 1 . . 1 Ballistic Cannon 2 | . . . 2 Launcher 1 | . . . 1 Special Weapon . | . . . . Impact Weapon . | . . . . Slashing Weapon 2 | . . . 2 Piercing Weapon . | . . . . Special Melee Weapon . | . . . . Unidentified Prototypes 4 | . . . 4 Corrupted Parts 2 | . . . 2 System Corruption 3 | . . . 3 Parts Lost 14 | . . . 14 Power 3 | . . . 3 Propulsion 5 | . . . 5 Utility 1 | . . . 1 Weapon 5 | . . . 5 Highest Loss Streak 8 | . . . 8 To Critical Strikes . | . . . . Average Slot Usage (%) 91 | . 85 82 92 Engine 20 | . 14 22 20 Treads 14 | . . . 17 Wheel 7 | . 28 22 3 Device 13 | . . 5 16 Storage 11 | . 14 11 11 Protection 2 | . . . 3 Energy Gun 5 | . 14 11 3 Energy Cannon 2 | . . . 3 Ballistic Gun 3 | . 14 11 1 Ballistic Cannon 5 | . . . 6 Slashing Weapon 1 | . . . 2 Naked Turns . | . . . . Heaviest Build 52 | 14 29 36 52 Greatest Support 40 | 32 32 32 40 Greatest Overweight (x) 3 | 3 . 1 2 Average Overweight (x) . | . . 1 . Largest Inventory Capacity 15 | 8 15 15 15 Average Capacity 13 | 7 8 15 15 Most Carried 11 | 6 4 3 11 Average Carried 4 | 3 3 2 4 Final Capacity 15 | 8 15 15 15 Final Carried 10 | 3 3 2 10 Class Distribution -------------------- 51% | Mutant 48% | Scavenger-Mutant Dominant Class ---------------- Mutant | -10/Materials Mutant | -9/Materials Scavenger-Mutant | -9/Storage Resources | -11 -10 -9 -9 ----------- Run | Yrd Mat Mat Sto Matter Collected 691 | 131 114 . 446 Remotely . | . . . . Salvage Created 912 | . 114 . 798 Parts 52 | . 5 . 47 Haulers Intercepted 3 | . . . 3 Recyclers Shooed 1 | . . . 1 Parts Field Recycled . | . . . . Retrieved Matter . | . . . . Parts Self-Destructed . | . . . . Prevented . | . . . . Kills | -11 -10 -9 -9 ------- Run | Yrd Mat Mat Sto Combat Hostiles Destroyed 16 | . . . 16 Melee 2 | . . . 2 Guns 8 | . . . 8 Cannons 5 | . . . 5 AOE 1 | . . . 1 Classes Destroyed 9 | . 2 . 7 Builder 2 | . . . 2 Hauler 3 | . . . 3 Recycler 2 | . 1 . 1 Operator 2 | . 1 . 1 Swarmer 3 | . . . 3 Grunt 7 | . . . 7 Duelist 1 | . . . 1 Protector 1 | . . . 1 Sentry 4 | . . . 4 Best Kill Streak 4 | . 2 . 4 Combat Bots Only 3 | . . . 3 Max Kills in Single Turn 2 | . 1 . 2 Gunslinging . | . . . . Exploded 1 | . . . 1 Melee 1 | . . . 1 Uniques/NPCs Destroyed . | . . . . Combat | -11 -10 -9 -9 -------- Run | Yrd Mat Mat Sto Hostile Shots Fired 178 | . . . 178 Missed 45 | . . . 45 Damage Taken 2002 | . 39 . 1963 Core 410 | . . . 410 Absorbed by Shields 98 | . . . 98 Core Remaining (%) 100 | 100 100 . . Volleys Fired 75 | . 4 . 71 Largest 2 | . 2 . 2 Hottest 107 | . 60 . 107 Shots Fired 130 | . 8 . 122 Gun 80 | . 8 . 72 Cannon 49 | . . . 49 Launcher 1 | . . . 1 Special . | . . . . Kinetic 66 | . 4 . 62 Thermal 37 | . . . 37 Explosive 1 | . . . 1 Electromagnetic 26 | . 4 . 22 Robot Hit Streak 21 | . 4 . 21 Robot Miss Streak 3 | . 2 . 3 Penetration Max . | . . . . Secondary Targets 1 | . . . 1 Max Gunslinging Chain 1 | . . . 1 Shots Hit Robots 102 | . 4 . 98 Core Hits 36 | . 3 . 33 Critical Kills . | . . . . Critical Parts Destroyed . | . . . . Critical Strikes 5 | . . . 5 Burn 1 | . . . 1 Blast 1 | . . . 1 Corrupt 1 | . . . 1 Sever 2 | . . . 2 Melee Attacks 9 | . . . 9 Impact . | . . . . Slashing 9 | . . . 9 Piercing . | . . . . Sneak Attacks 1 | . . . 1 Combat Hostiles . | . . . . Follow-up Attacks . | . . . . Damage Inflicted 1986 | . 84 . 1902 Guns 865 | . 56 . 809 Cannons 721 | . . . 721 Explosions 55 | . 28 . 27 Melee 314 | . . . 314 Ramming 31 | . . . 31 Kinetic 798 | . 13 . 785 Thermal 567 | . 28 . 539 Explosive . | . . . . Electromagnetic 276 | . 43 . 233 Impact . | . . . . Slashing 314 | . . . 314 Piercing . | . . . . Highest Corruption 7 | . . . 7 Average Corruption 6 | . . . 6 Corruption Purged . | . . . . Corruption Blocked . | . . . . Effects 26 | . . . 26 Message Errors 8 | . . . 8 Matter Fused 8 | . . . 8 Heat Flow Errors 2 | . . . 2 Parts Fused 1 | . . . 1 Data Loss (minor) 3 | . . . 3 Data Loss (major) 1 | . . . 1 Alerts 1 | . . . 1 Weapon Failures 2 | . . . 2 Overload Shots . | . . . . Overflow Damage 73 | . . . 73 Projectiles . | . . . . Explosions . | . . . . Melee 73 | . . . 73 Knockbacks 3 | . . . 3 Impact 1 | . . . 1 Kinetic 2 | . . . 2 Secondary . | . . . . Self-Inflicted Damage 105 | . 39 . 66 Shots 3 | . 1 . 2 Rammed 11 | . . . 11 Targets Rammed 11 | . . . 11 Kicked . | . . . . Crushed . | . . . . Highest Temperature 424 | . 12 . 424 Average Temperature 60 | . 12 . 61 Received Heat Transfer 688 | . . . 688 Effects 2 | . . . 2 Shutdowns 1 | . . . 1 Interference 1 | . . . 1 Siege Activations . | . . . . Robots Corrupted . | . . . . Combat Hostiles . | . . . . Parts Fried 1 | . . . 1 Impact Corruptions . | . . . . Robots Melted . | . . . . Combat Hostiles . | . . . . Parts Melted . | . . . . Heat Transferred 1270 | . 50 . 1220 Parts Sabotaged . | . . . . Parts Stolen . | . . . . Parts Stripped . | . . . . Power Chain Reactions 2 | . 1 . 1 Alert | -11 -10 -9 -9 ------- Run | Yrd Mat Mat Sto Peak Influence 313 | . 32 20 313 Initial 13 | . . 13 8 Average 145 | . 18 17 182 Maximum Alert Level 1 | . . . 1 Low Security (%) 67 | 100 100 100 58 Level 1 32 | . . . 41 Level 2 . | . . . . Level 3 . | . . . . Level 4 . | . . . . Level 5 . | . . . . High Security . | . . . . Max Security . | . . . . Squads Dispatched 3 | . . . 3 Investigation . | . . . . Extermination . | . . . . Reinforcement 1 | . . . 1 Assault 1 | . . . 1 Garrison 1 | . . . 1 Intercept . | . . . . Searches Triggered . | . . . . Construction Impeded . | . . . . Haulers Reinforced . | . . . . Active Scanning Responses . | . . . . Cargo Convoy Interrupts . | . . . . Stealth | -11 -10 -9 -9 --------- Run | Yrd Mat Mat Sto Distress Signals 1 | . . . 1 Communications Jammed . | . . . . Distress Signals . | . . . . Times Spotted 25 | . . . 25 Peak Tracking Total 5 | . . . 5 Tactical Retreats . | . . . . Traps | -11 -10 -9 -9 ------- Run | Yrd Mat Mat Sto Traps Triggered . | . . . . Indirectly . | . . . . Trap Hack Attempts . | . . . . Triggered . | . . . . Disarmed . | . . . . Reprogrammed . | . . . . Reused . | . . . . Traps Extracted . | . . . . Installed . | . . . . Triggered . | . . . . Machines | -11 -10 -9 -9 ---------- Run | Yrd Mat Mat Sto Machines Disabled 2 | . . . 2 Max in Single Turn 1 | . . . 1 Garrison Access 1 | . . . 1 Machines Repaired . | . . . . Machines Dismantled . | . . . . Machines Sabotaged . | . . . . Overloaded Fab Kills . | . . . . Hacking | -11 -10 -9 -9 --------- Run | Yrd Mat Mat Sto Machines Accessed 6 | . 3 1 2 Terminals 6 | . 3 1 2 Fabricators . | . . . . Repair Stations . | . . . . Recycling Units . | . . . . Scanalyzers . | . . . . Garrison Access . | . . . . Total Hacks 12 | . 7 2 3 Successful 5 | . 3 1 1 Failed 7 | . 4 1 2 Catastrophic . | . . . . Database Lockouts . | . . . . Manual 1 | . . . 1 Terminals 12 | . 7 2 3 Fabricators . | . . . . Repair Stations . | . . . . Recycling Units . | . . . . Scanalyzers . | . . . . Garrison Access . | . . . . Terminal Hacks 5 | . 3 1 1 Open Door 1 | . . . 1 Branch Access Points 2 | . 1 1 . Hauler Manifests 1 | . 1 . . Zone Layout 1 | . 1 . . Fabricator Hacks . | . . . . Repair Station Hacks . | . . . . Recycling Unit Hacks . | . . . . Scanalyzer . | . . . . Garrison Access Hacks . | . . . . Unauthorized Hacks . | . . . . Terminals . | . . . . Fabricators . | . . . . Repair Stations . | . . . . Recycling Units . | . . . . Scanalyzers . | . . . . Garrison Access . | . . . . Data Cores Recovered . | . . . . Used . | . . . . Hacking Detections 5 | . 3 1 1 Full Trace Events . | . . . . Feedback Events . | . . . . Feedback Blocked . | . . . . Robot Schematics Acquired . | . . . . Robots Built . | . . . . Authchips . | . . . . Time . | . . . . Total Robot Build Rating . | . . . . Part Schematics Acquired . | . . . . Parts Built . | . . . . Authchips . | . . . . Time . | . . . . Total Part Build Rating . | . . . . Parts Repaired . | . . . . Time . | . . . . Parts Recycled . | . . . . Recycled Matter . | . . . . Retrieved Matter . | . . . . Retrieved Components . | . . . . Parts Scanalyzed . | . . . . Part Schematics Acquired . | . . . . Parts Damaged . | . . . . Bothacking | -11 -10 -9 -9 ------------ Run | Yrd Mat Mat Sto Used RIF Installer . | . . . . Robots Hacked . | . . . . Non-combat . | . . . . Combat . | . . . . Robot Hacks Applied . | . . . . Relay Couplers Released . | . . . . Fabnet Peak Effective % . | . . . . Robots Rewired . | . . . . Allies Hacked . | . . . . Hacks Repelled . | . . . . Allies | -11 -10 -9 -9 -------- Run | Yrd Mat Mat Sto Total Allies . | . . . . Largest Group . | . . . . Highest-Rated Group . | . . . . Highest-Rated Ally . | . . . . Total Orders . | . . . . Ally Attacks . | . . . . Total Damage . | . . . . Kills . | . . . . Allies Corrupted . | . . . . Allies Melted . | . . . . Intel | -11 -10 -9 -9 ------- Run | Yrd Mat Mat Sto Robot Analysis Total . | . . . . Derelict Logs Recovered . | . . . . Drone Launches . | . . . . Drone Recoveries . | . . . . Exploration | -11 -10 -9 -9 ------------- Run | Yrd Mat Mat Sto Turns Passed 1203 | 66 162 35 940 Spaces Moved 533 | 52 148 28 305 Core 18 | 18 . . . Treads 247 | . . . 247 Legs . | . . . . Wheels 268 | 34 148 28 58 Hover . | . . . . Flight . | . . . . Fastest Speed 50 | 50 100 115 115 Average Speed 164 | 100 100 115 210 Slowest Speed 320 | 200 100 115 320 Overloaded Moves . | . . . . Propulsion Burnouts . | . . . . Robots Hopped . | . . . . Cave-ins Triggered . | . . . . Exploration Rate (%) 16 | 4 23 3 36 Regions Visited 3 Branch Regions 1 Pre-discovered Areas . | . . . . Known Exits Taken 1 | . . 1 . Unknown Exits Taken 2 | 1 1 . . Scrap Searched . | . . . . Spaces Dug . | . . . . Terrain Destroyed 10 | . 1 . 9 Melee . | . . . . Projectile 2 | . . . 2 AOE 8 | . 1 . 7 Terrain Rammed . | . . . . Walls Destroyed . | . . . . Machines Disabled . | . . . . Actions | -11 -10 -9 -9 --------- Run | Yrd Mat Mat Sto Total 709 | 66 154 30 459 Wait . | . . . . Move 530 | 51 147 27 305 Hop . | . . . . Pick Up 41 | 9 1 1 30 Fast Attach . | . . . . Attach 28 | 6 1 2 19 Detach . | . . . . Swap 7 | . . . 7 Drop 8 | . 1 . 7 Fire 75 | . 4 . 71 Melee 9 | . . . 9 Ram . | . . . . Kick . | . . . . Crush 11 | . . . 11 Escape Stasis . | . . . . Rewire . | . . . . Trap . | . . . . Miscellaneous . | . . . . Route ------- -11/Scrapyard -10/Materials (discovered 2 exits: *Mat / Min) -9/Materials (discovered 4 exits: Min x2 / *Sto x2) -9/Storage History --------- Turn | Location | Event 5 | -11/Scrapyard | Discovered new exit (range 16) 67 | -11/Scrapyard | Entered Materials 151 | -10/Materials | Identified exit to Mines 175 | -10/Materials | Discovered new exit (range 9) 229 | -10/Materials | Entered another Materials area 229 | -9/Materials | Evolved 2 slots: Power x1, Utility x1 230 | -9/Materials | Discovered new exit (range 15) 244 | -9/Materials | Identified exit to Mines 244 | -9/Materials | Identified exit to Storage 264 | -9/Materials | Entered Storage 316 | -9/Storage | Build established: Mutant 433 | -9/Storage | Core integrity fell below 50% 466 | -9/Storage | Core integrity fell below 20% 478 | -9/Storage | Lost 8 parts (2p2n1u3w) 526 | -9/Storage | Lost 3 parts (2n1w) 793 | -9/Storage | Build established: Scavenger-Mutant 1204 | -9/Storage | Destroyed by Y-45 Defender with Heavy Assault Rifle Last Messages --------------- K-01 Serf collects debris. Acquired Lgt. Treads. K-01 Serf collects debris. System corrupted: Matter fused (-9). System corrupted: IFF burst signal emitted. S-10 Pest knocked back. S-10 Pest destroyed. Acquired 18 matter. R-06 Scavenger collects Flight Unit. System corrupted: Heat flow error (+207). Y-45 Defender Hvy. Assault Rifle blasted off. R-06 Scavenger collects Flight Unit. R-06 Scavenger destroyed. Overheating: System interference. Imp. Heat Sink temporarily disabled. Y-45 Defender IFF system glitched. Critical hit (Burn: +37). Imp. EM Shotgun destroyed. Y-45 Defender destroyed. Power failure, Hvy. Ion Engine shutdown. Map ----- +----------------------------------------------------+ | ?????????????????????????????????????????????????? | | ?????????????????????????????????????????????????? | | ?????????????????????????????????????????????????? | | ?????????????????????????????????????????????????? | | ?????????????????????????????????????????????????? | | ?????????????????????????????????????????????????? | | ?????????????????????????????????????????????????? | | ?????????????????????????????????????????????????? | | ?????????????????????????????????????????????????? | | ?????????????????????????????????????????????????? | | ?????????????????????????????????????????????????? | | ?????????????????????????????????????????????????? | | ?????????????????????????????????????????????????? | | ?????????????????????????????????????????????????? | | ?????????????????????????????????????????????????? | | ?????????????????????????????????????????????????? | | ?????????????????????????????????????????????????? | | ?????????????????????????????????????????????????? | | ?????????????????????????????????????????????????? | | ?????????????????????????????????????????????????? | | ??????????##+#############???????????????????????? | | ??????????? #???????????????????????? | | ??????????????# * #???????????????????????? | | ??????????????# [=*#?????????????##########? | | ??????????????# ==Y%!####### ####?# #? | | ??????????????# =%=m=@%! g a# #? | | ??????????????# !==%*Y%wa u + #? | | ???????##?????# #########%######### ## % !%## | | ???????# !????# #???????? ;#??????# ## [! ## | | ???????# ????# #?????????##??????# #######+### | | ???????# ???# #???????????????###/####### ! # | | ???????# ???# #???????????????# ## + | | ???????+ ??# #???????????????# """" ## ## | | ???????# """?## ##??????? ?????# "! " ## #? | | ???????# """ # #??? ?????# "!|" ## #? | | ???????+ """ # =! # #????# " " ## ## | | ???????# """ +=%= / ?????# "/=" ## ## | | ???????# """ #=%= %# ?????# " " ## ! ## | | ???????# # #??????????????# ## =!## | | ?? ????# ?# ###??????????????# =% ##|% ## | | ] ####### #####################+##### % [ # | | ] % % % =%* # | | * ! =T + | | !%*!!! # | | #####+##+#########+#########+###############=% # | | ????????????????# #???# #?#######"##%! ## | | ????????????????" #???# ### % # # | | ????????????????" #???# ## % # # | | ????????????????#T##???# """" ### G # # | | ????????????????###????# """" #?# "" + + | +----------------------------------------------------+ Best States ------------- Heat Dissipation 52 Energy Generation 23 Energy Capacity 460 Matter Stores 300 Matter Capacity 300 Sight Range 16 Terrain Scan Density 10 Armor Coverage 150 Evasion (%) 50 Recoil Reduction 2 Item Schematics ----------------- None Robot Schematics ------------------ None Fabricated ------------ Nothing Alien Tech Used ----------------- None Achievements -------------- None Challenges ------------ None Game ------ Seed MiningFissionBoregun Manual? 0 Play Time 00:10:30 Cumulative 25.4 hours Start 2024.04.24 @ 19:11:14 End 2024.04.24 @ 19:23:22 Sessions 1 Manual Loads 0 Difficulty Rogue Special Mode None Game No. 68 Rogue 66 Adventurer 2 Explorer 0 Win Type - Total 0 Types 0/0/0/0/0/0/0/0/0 Lore% 22 Gallery% 30 Achievement% 23 Wizard Run 0 Options --------- Layout 1 ASCII 0 Keyboard 0 Movement Mouse Keybinds 0 Fullscreen 1 Font 16/SmallcapsGlow Map View 27x19 Zoom Use 100% Tactical HUD 0 Map Filters NONE Filters NONE Steam 1 RUN: 43b04875-ee32-498c-ac16-de53a5a4e2ef